fUST/lending_fUST_20240103
["ID","MTS","AMOUNT","RATE_DAILY","PERIOD"]
[309980983,1704260973118,-239.48878468,0.0003683,4]
[309980984,1704260973141,-1000.0,0.00036831,7]
[309980985,1704260973162,-154.79876161,0.00036832,5]
[309980986,1704260973182,-4016.94148571,0.00036832,4]
[309980991,1704261032462,-154.79876161,0.0003683,5]
[309980992,1704261032472,-235.07287613,0.00038377,4]
[309980993,1704261032500,-1894.66991584,0.00038377,4]
[309980994,1704261032510,-282.10192053,0.00038378,2]
[309980995,1704261032520,-180.17390095,0.00038658,2]
[309980996,1704261032530,-10271.53031054,0.00038661,4]
[309980997,1704261032539,-207.72899264,0.00038663,2]
[309980998,1704261032549,-297.5096,0.00038891,2]
[309980999,1704261032558,-205.023656,0.00039099,120]
[309981000,1704261032568,-715.73849101,0.0004,4]
[309981001,1704261032577,-297.5096,0.0004033,2]
[309981002,1704261032587,-300.0,0.00040515,30]
[309981003,1704261032597,-297.5096,0.00041769,2]
[309981004,1704261032607,-150.0,0.00041973,2]
[309981005,1704261032617,-5721.78,0.0004199,3]
[309981006,1704261032627,-63113.01384437,0.00042,2]
[309981007,1704261032636,-297.5096,0.00043208,2]
[309981008,1704261032647,-228.088,0.00043531,2]
[309981009,1704261032656,-150.162,0.00043531,2]
[309981010,1704261032666,-10142.73672354,0.000448,120]
[309981032,1704261038630,-297.5096,0.00044647,2]
[309981034,1704261038640,-4286.76092801,0.000448,120]
[309981036,1704261038649,-1253.86863436,0.000449,7]
[309981038,1704261038658,-195.0,0.00045,90]
[309981040,1704261038667,-166.52,0.00045027,120]
[309981042,1704261038676,-200.0,0.00045562,4]
[309981044,1704261038686,-4421.87232666,0.00045565,4]
[309981046,1704261038696,-150.0,0.000457,38]
[309981048,1704261038705,-433.98160686,0.00045866,7]
[309981050,1704261038715,-20654.84508636,0.00045927,2]
[309981204,1704261043509,-1310.96616857,0.00045927,2]
[309981463,1704261046527,-154.79876161,0.00041423,8]
[309981465,1704261046536,-3488.73000528,0.00045927,2]
[309981474,1704261046611,-778.34355977,0.00045927,2]
[309983356,1704261782886,-2105.35320978,0.000301,2]
[309983357,1704261783048,-42.96639204,0.000301,2]
[309983358,1704262059721,-980.0,0.00034,7]
[309983359,1704262059965,-20.0,0.00034,7]
[309983360,1704262069644,-684.971,0.00030038,4]
[309983361,1704262069800,-13.979,0.00030038,4]
[309983362,1704262148123,-154.76784823,0.00030037,5]
[309983363,1704262151095,-0.03091338,0.00030037,5]
[309983364,1704262151115,-149.96908662,0.0003004,2]
[309983388,1704262232667,-2.50722271,0.0003004,2]
[309983389,1704262232677,-449.24966771,0.00037049,4]
[309983390,1704262232690,-6740.82154967,0.00037049,4]
[309983391,1704262232699,-2129.74279197,0.0003705,4]
[309983392,1704262232709,-349.305419,0.00037055,2]
[309983393,1704262232718,-1331.5220966,0.0003709,2]
[309983395,1704262232728,-3779.2074702,0.00038,10]
[309983397,1704262232737,-166.666666,0.00038004,2]
[309983399,1704262232747,-154.78330338,0.00038425,5]
[309983401,1704262232755,-349.305419,0.00038426,2]
[309983403,1704262232765,-21312.5949994,0.00038426,2]
[309983405,1704262232774,-264.211215,0.00038994,2]
[309983406,1704262232783,-226.762741,0.00039131,2]
[309983407,1704262232792,-250.0,0.00039329,2]
[309983408,1704262232802,-4174.9541015,0.00039626,2]
[309983409,1704262232811,-349.305419,0.00039797,2]
[309983410,1704262232821,-1677.73758043,0.00039999,2]
[309983411,1704262232831,-715.73849101,0.0004,4]
[309983412,1704262232840,-201.73776914,0.0004,2]
[309983413,1704262232849,-166.666666,0.00040594,2]
[309983414,1704262232859,-201.73776914,0.000408,2]
[309983415,1704262232868,-1488.5541722,0.00041096,15]
[309983416,1704262232877,-349.305419,0.00041168,2]
[309983417,1704262232887,-240.2236437,0.00041423,4]
[309983418,1704262232898,-7577.00785969,0.00041423,4]
[309983419,1704262232907,-150.0,0.00041534,2]
[309983420,1704262232917,-201.73776914,0.000416,2]
[309983421,1704262232926,-1000.0,0.00042399,7]
[309983422,1704262232936,-242.08532297,0.000424,5]
[309983423,1704262232945,-349.305419,0.00042539,2]
[309983424,1704262232955,-166.666666,0.00043184,2]
[309983425,1704262232964,-242.08532297,0.000432,5]
[309983426,1704262232975,-2479.78133963,0.00043724,2]
[309983427,1704262232985,-177.969586,0.00043827,2]
[309983428,1704262232994,-282.4328768,0.00044,8]
[309983429,1704262233004,-200.0,0.00045096,4]
[309983430,1704262233015,-153.0,0.00045425,2]
[309983431,1704262233025,-153.0,0.00045425,2]
[309983432,1704262233034,-153.0,0.00045425,2]
[309983433,1704262233044,-154.0222339,0.00045425,2]
[309983434,1704262233054,-153.0,0.00045425,2]
[309983435,1704262233064,-153.9431941,0.00045425,2]
[309983436,1704262233074,-153.0,0.00045425,2]
[309983437,1704262233083,-2806.88,0.00045917,3]
[309983438,1704262233093,-2359.88764017,0.00045917,3]
[309983439,1704262233105,-1001.02977756,0.00045917,3]
[309983571,1704262239832,-521.0003647,0.00045917,3]
[309983584,1704262239958,-924.46221757,0.00045917,3]
[309983586,1704262239967,-9093.07892319,0.00045927,2]
[309983784,1704262241822,-6895.80128539,0.00045927,2]
[309987019,1704263138100,-176.68282155,0.00039876,4]
[309987020,1704263138120,-1666.5292457,0.00039876,4]
[309987021,1704263229120,-154.78330338,0.00039872,5]
[309987022,1704263229143,-1000.0,0.00039873,7]
[309987023,1704263229165,-4955.39572862,0.00039998,4]
[309987124,1704263439494,-521.0003647,0.00039993,4]
[309987126,1704263441275,-177.9496353,0.00039993,4]
[309987127,1704263441286,-7190.07121738,0.00039993,4]
[309987128,1704263441296,-2129.74279197,0.00039994,4]
[309987129,1704263441306,-715.73849101,0.0004,4]
[309987130,1704263441315,-201.73776914,0.0004,2]
[309987131,1704263441324,-1000.0,0.00040799,7]
[309987132,1704263441333,-201.73776914,0.000408,2]
[309987133,1704263441342,-157.4160881,0.00041374,2]
[309987134,1704263441352,-201.73776914,0.000416,2]
[309987135,1704263441361,-201.47993958,0.000424,5]
[309987136,1704263441371,-236.487212,0.0004242,2]
[309987137,1704263441381,-226.762741,0.00042774,2]
[309987138,1704263441390,-6110.179032,0.00042929,2]
[309987139,1704263441399,-150.0,0.00043827,2]
[309987140,1704263441408,-150.0,0.00043863,2]
[309987141,1704263441417,-236.487212,0.0004399,2]
[309987142,1704263441426,-236.487212,0.00045559,2]
[309987143,1704263441435,-169.69161421,0.000459,12]
[309987144,1704263441444,-8221.95605366,0.00045927,2]
[309987145,1704263441457,-335.29041006,0.00045927,2]
[309987236,1704264632094,-698.95,0.0003899,4]
[309987238,1704264632106,-1000.0,0.00038991,7]
[309987240,1704264632117,-154.79876161,0.00038992,5]
[309987242,1704264632127,-2119.77892989,0.00038992,4]
[309987262,1704264638334,-521.0003647,0.00038992,4]
[309987317,1704264666664,154.82968426,0.00024959,2]
[309987330,1704265832258,-196.134934,0.00036392,120]
[309987332,1704265832268,-1309.38626052,0.00036472,2]
[309987334,1704265832279,-626.27117964,0.00036473,4]
[309987336,1704265832289,-154.78330338,0.00036473,5]
[309987338,1704265832300,-332.602565,0.00036474,2]
[309987339,1704265832310,-7190.07121738,0.00036667,4]
[309987340,1704265832322,-1000.0,0.00036668,7]
[309987341,1704265832332,-4913.66340081,0.00036668,2]
[309987342,1704265832342,-1032.71002828,0.0003689,4]
[309987343,1704265832354,-150.0,0.00036892,2]
[309987344,1704265832364,-332.602565,0.00037824,2]
[309987345,1704265832374,-1127.40472699,0.00038673,2]
[309987346,1704265832384,-200.0,0.00038685,2]
[309987347,1704265832396,-45727.64768334,0.00038988,2]
[309987348,1704265832407,-332.602565,0.00039174,2]
[309987349,1704265832419,-300.0,0.00040336,30]
[309987350,1704265832429,-332.602565,0.00040523,2]
[309987351,1704265832439,-174.9918177,0.00041509,2]
[309987352,1704265832449,-332.602565,0.00041873,2]
[309987353,1704265832582,-473.0,0.0004211,4]
[309987354,1704265832594,-228.088,0.00044227,2]
[309987355,1704265832603,-306.9157721,0.0004486,2]
[309987356,1704265832614,-500.5571792,0.00045,10]
[309987357,1704265832623,-3788.75,0.00045695,3]
[309987358,1704265832633,-766.688817,0.000457,38]
[309987359,1704265832644,-151.0,0.00045705,7]
[309987360,1704265832654,-151.0,0.00045705,7]
[309987361,1704265832664,-4546.51,0.00045705,3]
[309987362,1704265832673,-5455.81,0.00045715,3]
[309987363,1704265832683,-192.387011,0.00045715,7]
[309987364,1704265832693,-192.387011,0.00045715,7]
[309987365,1704265832703,-151.0,0.00045725,2]
[309987366,1704265832713,-151.0,0.00045725,7]
[309987367,1704265832724,-151.0,0.00045725,7]
[309987368,1704265832734,-4289.09870687,0.00045725,2]
[309987369,1704265832744,-5086.59568211,0.00045927,4]
[309987404,1704265838424,-521.0003647,0.00045927,4]
[309987413,1704265841368,-366.65000021,0.00045927,4]
[309987414,1704265841382,-3286.17272974,0.00045927,4]
[309987419,1704265843345,-1057.0,0.00045927,4]
[309987420,1704265843356,-1114.4499975,0.00045927,4]
[309987421,1704266735108,-1000.0,0.00040786,7]
[309987422,1704266735132,-201.92322463,0.00040787,4]
[309987423,1704266735155,-154.76784823,0.00040787,8]
[309987424,1704266735178,-486.52099439,0.00040788,4]
[309987425,1704266827089,-451.22354302,0.00040685,16]
[309987426,1704266827110,-154.76784823,0.00040784,8]
[309987427,1704266827130,-5654.18764075,0.00040784,4]
[309987428,1704266844083,-154.76784823,0.00040784,4]
[309987444,1704267032442,-154.76784823,0.00040577,8]
[309987445,1704267032452,-1306.45467018,0.00040578,4]
[309987475,1704267038648,-715.73849101,0.00040577,4]
[309987476,1704267038657,-1127.53709207,0.00040578,4]
[309987477,1704267038667,-8217.22424844,0.00040578,4]
[309987478,1704267038675,-1000.0,0.00040579,7]
[309987479,1704267038685,-282.43287681,0.0004058,2]
[309987480,1704267038696,-5615.61531521,0.00040778,2]
[309987481,1704267038705,-639.08309854,0.00041423,2]
[309987482,1704267038714,-220.947421,0.00043583,120]
[309987483,1704267038723,-2479.78133963,0.00043724,2]
[309987484,1704267038733,-10015.75594924,0.00044,5]
[309987485,1704267038743,-150.0,0.000457,38]
[309987486,1704267038753,-150.0,0.00045781,2]
[309987487,1704267038763,-3850.80132031,0.000458,110]
[309987489,1704267038774,-545.53160385,0.00045927,4]
[309987492,1704267038784,-956.29442937,0.00045927,4]
[309987494,1704267038795,-297.6005845,0.00045927,4]
[309987495,1704267038805,-7313.85199891,0.00045927,120]
[309987538,1704267041539,-10949.34237942,0.00045927,120]
[309987551,1704267043406,-1406.69863065,0.00045927,120]
[309987557,1704267046484,-1417.76931355,0.00045927,120]
[309987600,1704268238767,-154.76784823,0.00038369,5]
[309987601,1704268238776,-626.27117964,0.0003837,4]
[309987602,1704268238786,-1000.0,0.00038371,7]
[309987603,1704268238796,-582.36097225,0.00038373,4]
[309987604,1704268238809,-6607.71024513,0.00038373,4]
[309987605,1704268238819,-3138.87960632,0.00038378,2]
[309987606,1704268238828,-156.94398031,0.00038378,2]
[309987607,1704268238837,-240.2236437,0.00041423,4]
[309987608,1704268238847,-7577.00785969,0.00041423,4]
[309987609,1704268238856,-164.118648,0.0004212,2]
[309987610,1704268238866,-180.656568,0.00042517,2]
[309987611,1704268238875,-1488.5541722,0.00042564,15]
[309987612,1704268238884,-188.77626,0.00042633,2]
[309987613,1704268238893,-500.0,0.00042768,2]
[309987614,1704268238902,-211.344295,0.00042851,120]
[309987615,1704268238912,-150.0,0.00042877,2]
[309987616,1704268238921,-150.0,0.00043827,2]
[309987617,1704268238929,-174.449981,0.00044016,2]
[309987618,1704268238939,-180.656568,0.0004409,2]
[309987619,1704268238948,-150.162,0.00044398,2]
[309987620,1704268238957,-150.75878594,0.00044912,2]
[309987621,1704268238966,-366.0,0.00045,30]
[309987622,1704268238975,-153.0,0.0004537,2]
[309987623,1704268238985,-242.08532297,0.00045469,8]
[309987624,1704268238995,-403.47553828,0.00045515,8]
[309987625,1704268239004,-180.656568,0.00045663,2]
[309987626,1704268239014,-500.0,0.00045762,2]
[309987627,1704268239024,-25351.20675807,0.00045927,120]
[309987628,1704268239035,-155.35344618,0.00045927,4]
[309987629,1704268239046,-14029.80640023,0.00045927,2]
[309987630,1704268239056,-1444.32527659,0.00045947,33]
[309987631,1704268239065,-680.96743239,0.00045979,4]
[309987632,1704268239074,-3343.87,0.00045985,3]
[309987633,1704268239084,-1000.0,0.00046,21]
[309987634,1704268239093,-1000.0,0.00046,46]
[309987635,1704268239103,-151.0,0.00046,7]
[309987636,1704268239112,-151.0,0.00046,7]
[309987637,1704268239122,-173.14831,0.00046015,7]
[309987638,1704268239132,-173.14831,0.00046015,7]
[309987639,1704268239142,-179.97,0.00046017,60]
[309987640,1704268239152,-151.0,0.00046025,2]
[309987641,1704268239161,-173.14831,0.00046025,7]
[309987642,1704268239171,-173.14831,0.00046025,7]
[309987643,1704268239180,-173.14831,0.00046025,7]
[309987644,1704268239190,-173.14831,0.00046025,7]
[309987645,1704268239200,-173.14831,0.00046025,7]
[309987646,1704268239211,-173.14831,0.00046025,7]
[309987647,1704268239220,-151.0,0.00046025,7]
[309987648,1704268239230,-151.0,0.00046025,7]
[309987649,1704268239241,-151.0,0.00046025,7]
[309987650,1704268239252,-151.0,0.00046025,7]
[309987651,1704268239261,-151.0,0.00046025,7]
[309987652,1704268239270,-151.0,0.00046025,7]
[309987653,1704268239280,-521.0003647,0.00046025,5]
[309987654,1704268239290,-720.05299569,0.00046025,2]
[309987655,1704268239301,-167.51461736,0.00046025,4]
[309987656,1704268239311,-386.18679823,0.00046025,4]
[309987657,1704268239320,-287.38751001,0.00046025,4]
[309987658,1704268239329,-1247.01105222,0.00046025,4]
[309987659,1704268239339,-370.72645481,0.00046025,4]
[309987660,1704268239350,-1011.00213614,0.00046025,4]
[309987661,1704268239359,-1060.43436732,0.00046025,4]
[309987662,1704268239369,-273.82271576,0.00046025,4]
[309987663,1704268239379,-246.09172938,0.00046025,4]
[309987664,1704268239389,-483.94911667,0.00046025,4]
[309987665,1704268239401,-155.37485297,0.00046025,4]
[309987666,1704268239411,-254.94860972,0.00046025,4]
[309987667,1704268239420,-4043.84609395,0.00046025,4]
[309987668,1704268239429,-1809.4135844,0.00046025,4]
[309987669,1704268239438,-872.77584106,0.00046025,4]
[309987670,1704268239448,-202.85674291,0.00046025,120]
[309987671,1704268239457,-7856.50509466,0.00046025,4]
[309987672,1704268239466,-486.02249153,0.00046025,4]
[309987673,1704268239474,-200.82714887,0.00046025,4]
[309987674,1704268239485,-1344.99162696,0.00046025,4]
[309987675,1704268239495,-751.97097364,0.00046025,4]
[309987676,1704268239506,-221.4503647,0.00046025,4]
[309987677,1704268239515,-687.65475,0.00046025,120]
[309987678,1704268239525,-493.95095799,0.00046025,4]
[309987679,1704268239534,-299.01720194,0.00046025,4]
[309987680,1704268239544,-1377.09550969,0.00046025,4]
[309987681,1704268239555,-751.83932956,0.00046025,2]
[309987682,1704268239564,-1703.73246948,0.00046025,4]
[309987683,1704268239574,-2115.77913752,0.00046025,4]
[309987684,1704268239583,-205.75067385,0.00046025,4]
[309987685,1704268239591,-1677.73758043,0.00046025,2]
[309987686,1704268239601,-242.96143164,0.00046026,30]
[309987687,1704268239610,-1706.27513451,0.00046026,4]
[309987688,1704268239619,-1150.83223676,0.00046026,4]
[309987689,1704268239628,-242.85092317,0.00046026,2]
[309987690,1704268239637,-3183.26273657,0.00046027,4]
[309987691,1704268239646,-500.0,0.00046027,21]
[309987692,1704268239655,-501.60763697,0.00046027,21]
[309987693,1704268239664,-500.0,0.00046027,21]
[309987694,1704268239673,-382.98818969,0.00046027,21]
[309987695,1704268239682,-500.0,0.00046027,21]
[309987696,1704268239693,-500.0,0.00046027,21]
[309987697,1704268239703,-500.0,0.00046027,21]
[309987698,1704268239712,-500.0,0.00046027,21]
[309987699,1704268239721,-287.16719532,0.00046027,21]
[309987700,1704268239731,-500.0,0.00046027,21]
[309987701,1704268239741,-297.0884025,0.00046027,21]
[309987702,1704268239750,-500.0,0.00046027,21]
[309987703,1704268239760,-500.0,0.00046027,21]
[309987704,1704268239770,-500.0,0.00046027,21]
[309987705,1704268239780,-448.50609482,0.00046027,21]
[309987706,1704268239789,-500.0,0.00046027,21]
[309987707,1704268239799,-223.95261274,0.00046027,21]
[309987708,1704268239809,-500.0,0.00046027,21]
[309987709,1704268239819,-500.0,0.00046027,21]
[309987710,1704268239829,-500.0,0.00046027,21]
[309987711,1704268239838,-500.0,0.00046027,21]
[309987712,1704268239848,-500.0,0.00046027,21]
[309987713,1704268239858,-500.0,0.00046027,21]
[309987714,1704268239869,-510.67161372,0.00046027,21]
[309987715,1704268239878,-557.1492875,0.00046027,21]
[309987716,1704268239887,-500.0,0.00046027,21]
[309987717,1704268239897,-500.0,0.00046027,21]
[309987718,1704268239909,-562.52764838,0.00046027,21]
[309987719,1704268239918,-500.0,0.00046027,21]
[309987720,1704268239927,-500.0,0.00046027,21]
[309987721,1704268239936,-555.97400466,0.00046027,21]
[309987722,1704268239945,-495.41008382,0.00046027,21]
[309987723,1704268239954,-500.0,0.00046027,21]
[309987724,1704268239963,-500.0,0.00046027,21]
[309987725,1704268239972,-500.0,0.00046027,21]
[309987726,1704268239983,-500.0,0.00046027,21]
[309987727,1704268239992,-158.27563529,0.00046027,21]
[309987728,1704268240001,-500.0,0.00046027,21]
[309987729,1704268240012,-500.0,0.00046027,21]
[309987730,1704268240022,-500.0,0.00046027,21]
[309987731,1704268240032,-500.0,0.00046027,21]
[309987732,1704268240041,-500.0,0.00046027,21]
[309987733,1704268240052,-500.0,0.00046027,21]
[309987734,1704268240061,-459.67342061,0.00046027,21]
[309987735,1704268240071,-500.0,0.00046027,21]
[309987736,1704268240080,-500.0,0.00046027,21]
[309987737,1704268240090,-501.85846231,0.00046027,21]
[309987738,1704268240099,-500.0,0.00046027,21]
[309987739,1704268240109,-500.0,0.00046027,21]
[309987740,1704268240119,-500.0,0.00046027,21]
[309987741,1704268240129,-500.0,0.00046027,21]
[309987742,1704268240139,-500.0,0.00046027,21]
[309987743,1704268240148,-227.86588545,0.00046027,21]
[309987744,1704268240158,-500.0,0.00046027,21]
[309987745,1704268240167,-500.0,0.00046027,21]
[309987746,1704268240177,-502.03248825,0.00046027,21]
[309987747,1704268240186,-414.27475815,0.00046027,21]
[309987748,1704268240196,-503.05571791,0.00046027,21]
[309987749,1704268240206,-504.00313968,0.00046027,21]
[309987750,1704268240216,-516.40482426,0.00046027,21]
[309987751,1704268240225,-500.0,0.00046027,21]
[309987752,1704268240235,-500.0,0.00046027,21]
[309987753,1704268240244,-500.0,0.00046027,21]
[309987754,1704268240254,-500.0,0.00046027,21]
[309987755,1704268240263,-500.0,0.00046027,21]
[309987756,1704268240273,-500.0,0.00046027,21]
[309987757,1704268240282,-211.46005942,0.00046027,21]
[309987758,1704268240291,-512.57905479,0.00046027,21]
[309987759,1704268240302,-429.37270665,0.00046027,2]
[309987760,1704268240311,-500.0,0.00046027,21]
[309987761,1704268240321,-500.0,0.00046027,21]
[309987762,1704268240330,-500.0,0.00046027,21]
[309987763,1704268240340,-500.0,0.00046027,21]
[309987764,1704268240349,-500.0,0.00046027,21]
[309987765,1704268240359,-500.0,0.00046027,21]
[309987766,1704268240369,-617.92673497,0.00046027,21]
[309987767,1704268240378,-500.0,0.00046027,21]
[309987768,1704268240388,-537.35066589,0.00046027,21]
[309987769,1704268240398,-628.51474695,0.00046027,21]
[309987770,1704268240407,-504.55958996,0.00046027,21]
[309987771,1704268240416,-506.55133982,0.00046027,21]
[309987772,1704268240425,-506.33105608,0.00046027,2]
[309987773,1704268240434,-500.0,0.00046027,21]
[309987774,1704268240447,-514.55875208,0.00046027,21]
[309987775,1704268240458,-464.40299459,0.00046027,2]
[309987776,1704268240471,-157.39781938,0.00046027,2]
[309987777,1704268240480,-500.0,0.00046027,21]
[309987778,1704268240490,-430.08686944,0.00046027,21]
[309987779,1704268240499,-500.0,0.00046027,21]
[309987780,1704268240509,-500.0,0.00046027,21]
[309987781,1704268240518,-209.35422196,0.00046027,21]
[309987782,1704268240641,-504.6846416,0.00046027,21]
[309987783,1704268240652,-500.0,0.00046027,3]
[309987784,1704268240662,-500.0,0.00046027,3]
[309987785,1704268240671,-500.0,0.00046027,3]
[309987786,1704268240680,-500.0,0.00046027,3]
[309987787,1704268240691,-500.0,0.00046027,3]
[309987789,1704268240700,-500.0,0.00046027,3]
[309987791,1704268240709,-500.0,0.00046027,3]
[309987792,1704268240718,-500.89158809,0.00046027,3]
[309987793,1704268240729,-508.2758128,0.00046027,21]
[309987794,1704268240738,-500.0,0.00046027,21]
[309987795,1704268240749,-500.0,0.00046027,21]
[309987796,1704268240760,-500.0,0.00046027,21]
[309987797,1704268240770,-500.0,0.00046027,21]
[309987798,1704268240779,-500.0,0.00046027,21]
[309987799,1704268240788,-500.0,0.00046027,21]
[309987800,1704268240798,-389.69367009,0.00046027,21]
[309987802,1704268240807,-500.0,0.00046027,21]
[309987803,1704268240816,-288.66521027,0.00046027,21]
[309987804,1704268240826,-500.0,0.00046027,21]
[309987805,1704268240834,-502.81173133,0.00046027,21]
[309987806,1704268240844,-500.0,0.00046027,21]
[309987807,1704268240854,-173.59897458,0.00046027,21]
[309987808,1704268240863,-500.0,0.00046027,21]
[309987809,1704268240872,-500.0,0.00046027,21]
[309987810,1704268240882,-512.17831879,0.00046027,21]
[309987811,1704268240891,-500.0,0.00046027,21]
[309987812,1704268240901,-220.0,0.00046027,2]
[309987813,1704268240910,-500.0,0.00046027,21]
[309987815,1704268240918,-220.0,0.00046027,2]
[309987816,1704268240928,-479.17576759,0.00046027,21]
[309987817,1704268240937,-220.0,0.00046027,2]
[309987818,1704268240946,-220.0,0.00046027,2]
[309987819,1704268240956,-175.68673246,0.00046027,2]
[309987820,1704268240965,-500.0,0.00046027,21]
[309987821,1704268240974,-500.0,0.00046027,21]
[309987822,1704268240983,-500.0,0.00046027,21]
[309987823,1704268240993,-589.60402152,0.00046027,21]
[309987824,1704268241003,-368.71408279,0.00046027,21]
[309987825,1704268241013,-2301.63,0.00046027,21]
[309987826,1704268241023,-2301.63,0.00046027,21]
[309987827,1704268241032,-2301.63,0.00046027,21]
[309987828,1704268241042,-2301.63,0.00046027,21]
[309987829,1704268241051,-2301.63,0.00046027,21]
[309987830,1704268241062,-2301.63,0.00046027,21]
[309987831,1704268241071,-2301.63,0.00046027,21]
[309987832,1704268241080,-2301.63,0.00046027,21]
[309987833,1704268241089,-2301.63,0.00046027,21]
[309987834,1704268241099,-2301.63,0.00046027,21]
[309987835,1704268241109,-2301.63,0.00046027,21]
[309987836,1704268241119,-2301.63,0.00046027,21]
[309987837,1704268241129,-2301.63,0.00046027,21]
[309987838,1704268241139,-2301.63,0.00046027,21]
[309987839,1704268241149,-2301.63,0.00046027,21]
[309987840,1704268241160,-2301.63,0.00046027,21]
[309987841,1704268241170,-2301.63,0.00046027,21]
[309987842,1704268241181,-2301.63,0.00046027,21]
[309987843,1704268241190,-500.0,0.00046027,21]
[309987844,1704268241199,-2301.63,0.00046027,21]
[309987845,1704268241209,-500.0,0.00046027,21]
[309987846,1704268241219,-504.67114962,0.00046027,21]
[309987847,1704268241228,-2301.63,0.00046027,21]
[309987848,1704268241237,-2301.63,0.00046027,21]
[309987849,1704268241247,-2301.63,0.00046027,21]
[309987850,1704268241257,-2301.63,0.00046027,21]
[309987851,1704268241266,-2301.86453122,0.00046027,21]
[309987852,1704268241276,-502.60323981,0.00046027,21]
[309987853,1704268241287,-514.46430742,0.00046027,21]
[309987854,1704268241296,-150.0,0.00046027,2]
[309987855,1704268241307,-150.0,0.00046027,2]
[309987856,1704268241317,-150.0,0.00046027,2]
[309987857,1704268241327,-150.0,0.00046027,2]
[309987858,1704268241336,-251.36341069,0.00046027,2]
[309987859,1704268241345,-553.87,0.00046027,21]
[309987860,1704268241354,-500.0,0.00046027,21]
[309987861,1704268241364,-553.87,0.00046027,21]
[309987862,1704268241373,-511.98001245,0.00046027,21]
[309987863,1704268241382,-553.87,0.00046027,21]
[309987864,1704268241392,-553.87,0.00046027,21]
[309987865,1704268241401,-553.87,0.00046027,21]
[309987866,1704268241412,-553.87,0.00046027,21]
[309987867,1704268241421,-553.87,0.00046027,21]
[309987868,1704268241430,-553.87,0.00046027,21]
[309987869,1704268241440,-553.87,0.00046027,21]
[309987870,1704268241452,-553.87,0.00046027,21]
[309987871,1704268241461,-553.87,0.00046027,21]
[309987872,1704268241470,-553.87,0.00046027,21]
[309987873,1704268241479,-500.0,0.00046027,21]
[309987874,1704268241488,-553.87,0.00046027,21]
[309987875,1704268241497,-500.0,0.00046027,21]
[309987876,1704268241506,-553.87,0.00046027,21]
[309987877,1704268241515,-553.87,0.00046027,21]
[309987878,1704268241524,-553.87,0.00046027,21]
[309987879,1704268241534,-553.87,0.00046027,21]
[309987880,1704268241543,-553.87,0.00046027,21]
[309987881,1704268241554,-500.0,0.00046027,21]
[309987882,1704268241563,-553.87,0.00046027,21]
[309987883,1704268241573,-500.0,0.00046027,21]
[309987884,1704268241582,-553.87,0.00046027,21]
[309987885,1704268241592,-500.0,0.00046027,21]
[309987886,1704268241601,-553.87,0.00046027,21]
[309987887,1704268241610,-553.87,0.00046027,21]
[309987888,1704268241619,-500.0,0.00046027,21]
[309987889,1704268241628,-553.87,0.00046027,21]
[309987891,1704268241638,-505.07985632,0.00046027,21]
[309987892,1704268241647,-554.08,0.00046027,21]
[309987893,1704268241655,-500.0,0.00046027,21]
[309987894,1704268241665,-220.31353426,0.00046027,21]
[309987895,1704268241674,-505.88831471,0.00046027,21]
[309987896,1704268241682,-500.0,0.00046027,21]
[309987897,1704268241691,-500.0,0.00046027,21]
[309987898,1704268241700,-500.0,0.00046027,21]
[309987899,1704268241709,-577.36348312,0.00046027,21]
[309987900,1704268241718,-500.0,0.00046027,21]
[309987901,1704268241728,-504.11167688,0.00046027,21]
[309987902,1704268241738,-500.0,0.00046027,21]
[309987903,1704268241749,-505.07922909,0.00046027,21]
[309987904,1704268241760,-512.3255425,0.00046027,21]